fUSD/lending_fUSD_20240805
["ID","MTS","AMOUNT","RATE_DAILY","PERIOD"]
[334223929,1722844323163,-500.0,0.00044383,60]
[334223930,1722844323218,-500.0,0.00044383,60]
[334223931,1722844323271,-500.0,0.00044383,60]
[334223932,1722844323319,-500.0,0.00044383,60]
[334223933,1722844323368,-1988.88,0.00044383,60]
[334223934,1722844323418,-667.55,0.00044383,60]
[334223935,1722844323465,-874.73,0.00044383,60]
[334223936,1722844323512,-500.0,0.00044383,60]
[334223937,1722844323557,-2759.05,0.00044383,60]
[334223938,1722844323603,-665.68,0.00044383,60]
[334223939,1722844323650,-715.58,0.00044383,60]
[334223940,1722844323705,-1540.53,0.00044383,60]
[334223941,1722844323751,-554.11342874,0.00044383,60]
[334223942,1722844323798,-1382.52,0.00044383,60]
[334223943,1722844323849,-267.94919295,0.00044383,60]
[334223944,1722844323906,-500.0,0.00044383,60]
[334223945,1722844323965,-2121.04,0.00044383,60]
[334223946,1722844324013,-1078.21,0.00044383,60]
[334223947,1722844324063,-500.0,0.00044383,60]
[334223948,1722844324115,-500.0,0.00044383,60]
[334223949,1722844324165,-2540.04,0.00044383,60]
[334223950,1722844324213,-936.81,0.00044383,60]
[334223951,1722844324260,-1273.7,0.00044383,60]
[334223952,1722844324306,-501.25110311,0.00044383,60]
[334223953,1722844324350,-1804.22,0.00044383,60]
[334223954,1722844324395,-500.0,0.00044383,60]
[334223955,1722844324442,-500.0,0.00044383,60]
[334223956,1722844324495,-996.63,0.00044383,60]
[334223957,1722844324540,-503.74034796,0.00044383,120]
[334223958,1722844324584,-928.49,0.00044383,60]
[334223959,1722844324639,-500.0,0.00044383,120]
[334223960,1722844324695,-500.0,0.00044383,60]
[334223961,1722844324757,-532.81,0.00044383,60]
[334223962,1722844324819,-535.18,0.00044384,120]
[334223963,1722844324878,-1000.0,0.00044409,120]
[334223964,1722844324939,-1978.8,0.0004441,120]
[334223965,1722844325004,-185.41111111,0.00044438,120]
[334223966,1722844325068,-150.0,0.00044479,120]
[334223967,1722844325130,-1000.0,0.00044489,120]
[334223968,1722844325193,-151.0,0.00044521,120]
[334223969,1722844325254,-1000.0,0.00044568,120]
[334223970,1722844325308,-1000.0,0.00044648,120]
[334223971,1722844325363,-1250.0,0.00044657,120]
[334223972,1722844325417,-219.66,0.00044657,60]
[334223973,1722844325469,-500.0,0.00044657,60]
[334223974,1722844325522,-4905.833523,0.00044657,60]
[334223975,1722844325576,-501.00665666,0.00044657,60]
[334223976,1722844325628,-500.0,0.00044657,60]
[334223977,1722844325681,-500.0,0.00044657,60]
[334223978,1722844325743,-500.0,0.00044657,60]
[334223979,1722844325798,-500.0,0.00044657,60]
[334223980,1722844325854,-500.0,0.00044657,60]
[334223981,1722844325919,-500.0,0.00044657,60]
[334223982,1722844325973,-500.0,0.00044657,60]
[334223983,1722844326027,-500.0,0.00044657,60]
[334223984,1722844326084,-504.34594453,0.00044657,60]
[334223985,1722844326139,-506.10143126,0.00044657,60]
[334223986,1722844326198,-500.0,0.00044657,60]
[334223987,1722844326257,-500.0,0.00044657,60]
[334223988,1722844326312,-500.0,0.00044657,60]
[334223989,1722844326366,-634.92498511,0.00044657,60]
[334223990,1722844326420,-504.26762334,0.00044657,60]
[334223991,1722844326474,-500.0,0.00044657,60]
[334223992,1722844326527,-502.80002402,0.00044657,60]
[334223993,1722844326580,-500.0,0.00044657,60]
[334223994,1722844326634,-611.06710045,0.00044657,60]
[334223995,1722844326690,-500.0,0.00044657,60]
[334223996,1722844326750,-500.0,0.00044657,60]
[334223997,1722844326807,-500.0,0.00044657,60]
[334223998,1722844326864,-500.0,0.00044657,60]
[334223999,1722844326919,-194.04084086,0.00044657,60]
[334224000,1722844326973,-500.0,0.00044657,60]
[334224001,1722844327027,-500.0,0.00044657,60]
[334224002,1722844327081,-500.0,0.00044657,60]
[334224003,1722844327135,-500.0,0.00044657,60]
[334224004,1722844327191,-500.0,0.00044657,60]
[334224005,1722844327248,-520.99064904,0.00044657,60]
[334224006,1722844327301,-500.0,0.00044657,60]
[334224007,1722844327352,-500.0,0.00044657,60]
[334224008,1722844327404,-211.04105304,0.00044657,60]
[334224009,1722844327461,-500.0,0.00044657,60]
[334224010,1722844327515,-263.80752537,0.00044657,60]
[334224011,1722844327567,-500.0,0.00044657,60]
[334224012,1722844327619,-500.0,0.00044657,60]
[334224013,1722844327671,-505.26534643,0.00044657,60]
[334224014,1722844327725,-500.0,0.00044657,60]
[334224015,1722844327777,-500.0,0.00044657,60]
[334224016,1722844327831,-500.0,0.00044657,60]
[334224017,1722844327884,-409.42987384,0.00044657,60]
[334224018,1722844327935,-500.0,0.00044657,60]
[334224019,1722844327992,-500.0,0.00044657,60]
[334224020,1722844328046,-502.73606003,0.00044657,60]
[334224021,1722844328099,-505.63536878,0.00044657,60]
[334224022,1722844328154,-500.0,0.00044657,60]
[334224023,1722844328214,-500.0,0.00044657,60]
[334224024,1722844328267,-500.56954536,0.00044657,60]
[334224025,1722844328321,-500.0,0.00044657,60]
[334224026,1722844328374,-500.0,0.00044657,60]
[334224027,1722844328426,-500.0,0.00044657,60]
[334224028,1722844328478,-500.0,0.00044657,60]
[334224029,1722844328532,-500.0,0.00044657,60]
[334224030,1722844328583,-500.0,0.00044657,60]
[334224031,1722844328637,-500.0,0.00044657,60]
[334224032,1722844328693,-501.46573539,0.00044657,60]
[334224033,1722844328750,-500.0,0.00044657,60]
[334224034,1722844328802,-500.0,0.00044657,60]
[334224035,1722844328856,-500.0,0.00044657,60]
[334224036,1722844328909,-500.0,0.00044657,60]
[334224037,1722844328962,-500.0,0.00044657,60]
[334224038,1722844329019,-501.93711207,0.00044657,60]
[334224039,1722844329072,-500.0,0.00044657,60]
[334224040,1722844329124,-500.0,0.00044657,60]
[334224041,1722844329177,-500.0,0.00044657,60]
[334224042,1722844329231,-500.0,0.00044657,60]
[334224043,1722844329286,-500.75033971,0.00044657,60]
[334224044,1722844329335,-500.0,0.00044657,60]
[334224045,1722844329386,-500.0,0.00044657,60]
[334224046,1722844329439,-500.0,0.00044657,60]
[334224047,1722844329494,-500.0,0.00044657,60]
[334224048,1722844329544,-500.0,0.00044657,60]
[334224049,1722844329596,-509.11130829,0.00044657,60]
[334224050,1722844329646,-500.0,0.00044657,60]
[334224051,1722844330116,-505.62651662,0.00044657,60]
[334224052,1722844330191,-500.0,0.00044657,60]
[334224053,1722844330238,-500.0,0.00044657,60]
[334224054,1722844330279,-507.27420556,0.00044657,60]
[334224055,1722844330321,-500.0,0.00044657,60]
[334224056,1722844330363,-507.80086833,0.00044657,60]
[334224057,1722844330407,-500.0,0.00044657,60]
[334224058,1722844330449,-525.5,0.00044657,60]
[334224059,1722844330492,-500.0,0.00044657,60]
[334224060,1722844330533,-1079.81,0.00044657,60]
[334224061,1722844330574,-500.0,0.00044657,60]
[334224062,1722844330614,-500.0,0.00044657,60]
[334224063,1722844330653,-500.0,0.00044657,60]
[334224064,1722844330694,-965.1,0.00044657,60]
[334224065,1722844330739,-513.54352977,0.00044657,60]
[334224066,1722844330781,-514.31,0.00044657,60]
[334224067,1722844330823,-500.0,0.00044657,60]
[334224068,1722844330864,-500.0,0.00044657,60]
[334224069,1722844330906,-500.0,0.00044657,60]
[334224070,1722844330950,-500.0,0.00044657,60]
[334224071,1722844330994,-500.0,0.00044657,60]
[334224072,1722844331036,-500.0,0.00044657,60]
[334224073,1722844331078,-500.0,0.00044657,60]
[334224074,1722844331121,-665.03,0.00044657,60]
[334224075,1722844331164,-500.0,0.00044657,60]
[334224076,1722844331209,-500.0,0.00044657,60]
[334224077,1722844331256,-500.0,0.00044657,60]
[334224078,1722844331297,-1235.78,0.00044657,60]
[334224079,1722844331340,-500.0,0.00044657,60]
[334224080,1722844331381,-500.0,0.00044657,60]
[334224081,1722844331425,-500.0,0.00044657,60]
[334224082,1722844331472,-634.87,0.00044657,60]
[334224083,1722844331517,-645.01,0.00044657,60]
[334224084,1722844331561,-1099.51,0.00044657,60]
[334224085,1722844331608,-531.86,0.00044657,60]
[334224086,1722844331651,-3063.03,0.00044657,60]
[334224087,1722844331695,-2292.05,0.00044657,60]
[334224088,1722844331744,-500.0,0.00044657,60]
[334224089,1722844331789,-500.0,0.00044657,60]
[334224090,1722844331835,-503.90369176,0.00044657,60]
[334224091,1722844331882,-500.0,0.00044657,60]
[334224092,1722844331927,-1479.31,0.00044657,60]
[334224093,1722844331974,-637.54885516,0.00044657,60]
[334224094,1722844332023,-1046.58,0.00044657,60]
[334224095,1722844332069,-501.21507769,0.00044657,60]
[334224096,1722844332113,-500.0,0.00044657,60]
[334224097,1722844332159,-500.0,0.00044657,60]
[334224098,1722844332211,-618.64014176,0.00044657,60]
[334224099,1722844332265,-660.02,0.00044657,60]
[334224100,1722844332308,-872.75,0.00044657,60]
[334224101,1722844332355,-500.0,0.00044657,60]
[334224102,1722844332399,-500.0,0.00044657,60]
[334224103,1722844332455,-500.0,0.00044657,60]
[334224104,1722844332503,-1517.27,0.00044657,60]
[334224105,1722844332551,-594.44,0.00044657,60]
[334224106,1722844332597,-500.0,0.00044657,60]
[334224107,1722844332643,-1942.65,0.00044657,60]
[334224108,1722844332686,-1605.08,0.00044657,60]
[334224109,1722844332730,-500.0,0.00044657,60]
[334224110,1722844332775,-500.0,0.00044657,60]
[334224111,1722844332820,-500.0,0.00044657,60]
[334224112,1722844332868,-992.56,0.00044657,60]
[334224113,1722844332915,-500.0,0.00044657,60]
[334224114,1722844332964,-502.31345408,0.00044657,60]
[334224115,1722844333011,-1503.6,0.00044657,60]
[334224116,1722844333057,-500.0,0.00044657,60]
[334224117,1722844333103,-418.69512254,0.00044657,60]
[334224118,1722844333149,-500.0,0.00044657,60]
[334224119,1722844333195,-500.0,0.00044657,60]
[334224120,1722844333249,-1930.09,0.00044657,60]
[334224121,1722844333296,-500.0,0.00044657,60]
[334224122,1722844333343,-622.11,0.00044657,60]
[334224123,1722844333390,-500.0,0.00044657,60]
[334224124,1722844333437,-549.14,0.00044657,60]
[334224125,1722844333490,-716.52,0.00044657,60]
[334224126,1722844333537,-1860.68,0.00044657,60]
[334224127,1722844333586,-1307.65,0.00044657,60]
[334224128,1722844333632,-500.0,0.00044657,60]
[334224129,1722844333677,-560.81,0.00044657,60]
[334224130,1722844333721,-1523.29,0.00044657,60]
[334224131,1722844333766,-580.69,0.00044657,60]
[334224132,1722844333810,-776.59,0.00044657,60]
[334224133,1722844333855,-1061.98,0.00044657,60]
[334224134,1722844333899,-821.08,0.00044657,60]
[334224135,1722844333942,-500.0,0.00044657,60]
[334224136,1722844333996,-592.67,0.00044657,60]
[334224137,1722844334041,-500.0,0.00044657,60]
[334224138,1722844334088,-1849.0,0.00044657,60]
[334224139,1722844334137,-500.0,0.00044657,60]
[334224140,1722844334185,-500.0,0.00044657,60]
[334224141,1722844334230,-500.0,0.00044657,60]
[334224142,1722844334274,-500.0,0.00044657,60]
[334224143,1722844334317,-500.0,0.00044657,60]
[334224144,1722844334360,-1270.63,0.00044657,60]
[334224145,1722844334404,-555.41,0.00044657,60]
[334224146,1722844334450,-500.0,0.00044657,60]
[334224147,1722844334714,-956.3,0.00044657,60]
[334224148,1722844334760,-757.15,0.00044657,60]
[334224149,1722844334804,-500.0,0.00044657,60]
[334224150,1722844334848,-500.0,0.00044657,60]
[334224151,1722844334893,-500.0,0.00044657,60]
[334224152,1722844334937,-504.14553413,0.00044657,60]
[334224153,1722844334987,-500.0,0.00044657,60]
[334224154,1722844335034,-500.0,0.00044657,60]
[334224155,1722844335081,-500.0,0.00044657,60]
[334224156,1722844335128,-1349.31,0.00044657,60]
[334224157,1722844335178,-594.41,0.00044657,60]
[334224158,1722844335224,-500.0,0.00044657,60]
[334224159,1722844335269,-500.70745917,0.00044657,60]
[334224160,1722844335312,-500.0,0.00044657,60]
[334224161,1722844335357,-500.0,0.00044657,60]
[334224162,1722844335406,-2341.2,0.00044657,60]
[334224163,1722844335450,-500.0,0.00044657,60]
[334224164,1722844335498,-500.0,0.00044657,60]
[334224165,1722844335540,-500.0,0.00044657,60]
[334224166,1722844335582,-500.0,0.00044657,60]
[334224167,1722844335624,-500.0,0.00044657,60]
[334224168,1722844335668,-500.0,0.00044657,60]
[334224169,1722844335712,-500.0,0.00044657,60]
[334224170,1722844335754,-1117.83,0.00044657,60]
[334224171,1722844335796,-500.0,0.00044657,60]
[334224172,1722844335837,-500.0,0.00044657,60]
[334224173,1722844335880,-997.35,0.00044657,60]
[334224174,1722844335922,-500.0,0.00044657,60]
[334224175,1722844335966,-500.0,0.00044657,60]
[334224176,1722844336018,-500.0,0.00044657,60]
[334224177,1722844336062,-500.0,0.00044657,60]
[334224178,1722844336105,-500.0,0.00044657,60]
[334224179,1722844336151,-500.0,0.00044657,60]
[334224180,1722844336197,-500.0,0.00044657,60]
[334224181,1722844336247,-500.0,0.00044657,60]
[334224182,1722844336290,-1385.16,0.00044657,60]
[334224183,1722844336332,-500.0,0.00044657,60]
[334224184,1722844336373,-500.0,0.00044657,60]
[334224185,1722844336416,-2013.05,0.00044657,60]
[334224186,1722844336463,-500.0,0.00044657,60]
[334224187,1722844336504,-500.0,0.00044657,60]
[334224188,1722844336544,-500.0,0.00044657,60]
[334224189,1722844336585,-786.02,0.00044657,60]
[334224190,1722844336626,-500.0,0.00044657,60]
[334224191,1722844336669,-500.0,0.00044657,60]
[334224192,1722844336715,-1285.25,0.00044657,60]
[334224193,1722844336758,-1185.26,0.00044657,60]
[334224194,1722844336803,-772.26,0.00044657,60]
[334224195,1722844336849,-500.0,0.00044657,60]
[334224196,1722844336895,-778.55,0.00044657,60]
[334224197,1722844336939,-500.0,0.00044657,60]
[334224198,1722844336987,-500.0,0.00044657,60]
[334224199,1722844337032,-500.0,0.00044657,60]
[334224200,1722844337076,-1252.51,0.00044657,60]
[334224201,1722844337120,-500.0,0.00044657,60]
[334224202,1722844337164,-899.2,0.00044657,60]
[334224203,1722844337211,-500.0,0.00044657,60]
[334224204,1722844337254,-523.91,0.00044657,60]
[334224205,1722844337298,-500.0,0.00044657,60]
[334224206,1722844337345,-500.0,0.00044657,60]
[334224207,1722844337390,-524.16424343,0.00044657,60]
[334224208,1722844337436,-628.03,0.00044657,60]
[334224209,1722844337480,-500.0,0.00044657,60]
[334224210,1722844337524,-536.05,0.00044657,60]
[334224211,1722844337568,-500.0,0.00044657,60]
[334224212,1722844337609,-751.17,0.00044657,60]
[334224213,1722844337652,-500.0,0.00044657,60]
[334224214,1722844337693,-500.0,0.00044657,60]
[334224215,1722844337736,-500.0,0.00044657,60]
[334224216,1722844337778,-500.0,0.00044657,60]
[334224217,1722844337821,-500.0,0.00044657,60]
[334224218,1722844337864,-500.0,0.00044657,60]
[334224219,1722844337908,-500.0,0.00044657,60]
[334224220,1722844338036,-500.0,0.00044657,60]
[334224221,1722844338089,-500.0,0.00044657,60]
[334224222,1722844338138,-3160.53,0.00044657,60]
[334224223,1722844338186,-508.55,0.00044657,60]
[334224224,1722844338231,-1729.34,0.00044657,60]
[334224225,1722844338275,-173.73390796,0.00044657,60]
[334224226,1722844338317,-642.46,0.00044657,60]
[334224227,1722844338360,-500.0,0.00044657,60]
[334224228,1722844338402,-500.0,0.00044657,60]
[334224229,1722844338446,-970.65,0.00044657,60]
[334224230,1722844338495,-781.82,0.00044657,60]
[334224231,1722844338537,-173.22632037,0.00044657,60]
[334224232,1722844338581,-865.91,0.00044657,60]
[334224233,1722844338625,-500.0,0.00044657,60]
[334224234,1722844338669,-612.7,0.00044657,60]
[334224235,1722844338716,-500.0,0.00044657,60]
[334224236,1722844338761,-500.0,0.00044657,60]
[334224237,1722844338806,-500.0,0.00044657,60]
[334224238,1722844338852,-500.0,0.00044657,60]
[334224239,1722844338896,-537.68,0.00044657,60]
[334224240,1722844338939,-500.0,0.00044657,60]
[334224241,1722844338989,-500.0,0.00044657,60]
[334224242,1722844339036,-753.56,0.00044657,60]
[334224243,1722844339081,-567.23,0.00044657,60]
[334224244,1722844339126,-500.0,0.00044657,60]
[334224245,1722844339170,-2567.32,0.00044657,60]
[334224246,1722844339215,-500.0,0.00044657,60]
[334224247,1722844339260,-539.37,0.00044657,60]
[334224248,1722844339304,-500.0,0.00044657,60]
[334224249,1722844339348,-500.0,0.00044657,60]
[334224250,1722844339391,-802.29,0.00044657,60]
[334224251,1722844339436,-600.9,0.00044657,60]
[334224252,1722844339481,-1563.99,0.00044657,60]
[334224253,1722844339524,-500.0,0.00044657,60]
[334224254,1722844339568,-500.0,0.00044657,60]
[334224255,1722844339614,-500.0,0.00044657,60]
[334224256,1722844339660,-500.0,0.00044657,60]
[334224257,1722844339706,-500.0,0.00044657,60]
[334224258,1722844339757,-500.0,0.00044657,60]
[334224259,1722844339803,-2391.07,0.00044657,60]
[334224260,1722844339850,-910.33,0.00044657,60]
[334224261,1722844339896,-926.82,0.00044657,60]
[334224262,1722844339940,-500.0,0.00044657,60]
[334224263,1722844340001,-1591.38,0.00044657,60]
[334224264,1722844340050,-2018.12,0.00044657,60]
[334224265,1722844340095,-500.0,0.00044657,60]
[334224266,1722844340141,-500.0,0.00044657,60]
[334224267,1722844340188,-691.99,0.00044657,60]
[334224268,1722844340230,-374.88089947,0.00044657,60]
[334224269,1722844340273,-500.0,0.00044657,60]
[334224270,1722844340315,-500.0,0.00044657,60]
[334224271,1722844340356,-194.55841303,0.00044657,60]
[334224272,1722844340398,-500.0,0.00044657,60]
[334224273,1722844340445,-500.0,0.00044657,60]
[334224274,1722844340492,-500.0,0.00044657,60]
[334224275,1722844340537,-500.0,0.00044657,60]
[334224276,1722844340583,-779.41,0.00044657,60]
[334224277,1722844340627,-500.0,0.00044657,60]
[334224278,1722844340672,-942.51,0.00044657,60]
[334224279,1722844340721,-500.0,0.00044657,60]
[334224280,1722844340766,-2916.29,0.00044657,60]
[334224281,1722844340813,-500.0,0.00044657,60]
[334224282,1722844340860,-500.0,0.00044657,60]
[334224283,1722844340908,-1233.31,0.00044657,60]
[334224284,1722844340956,-766.73,0.00044657,60]
[334224285,1722844341013,-500.0,0.00044657,60]
[334224286,1722844341060,-500.0,0.00044657,60]
[334224287,1722844341106,-915.42,0.00044657,60]
[334224288,1722844341153,-500.0,0.00044657,60]
[334224289,1722844341202,-500.0,0.00044657,60]
[334224290,1722844341249,-500.0,0.00044657,60]
[334224291,1722844341297,-870.91,0.00044657,60]
[334224292,1722844341342,-1691.15,0.00044657,60]
[334224293,1722844341388,-500.0,0.00044657,60]
[334224294,1722844341437,-500.0,0.00044657,60]
[334224295,1722844341483,-500.49442751,0.00044657,60]
[334224296,1722844341529,-500.0,0.00044657,60]
[334224297,1722844341573,-834.27,0.00044657,60]
[334224298,1722844341614,-1459.73,0.00044657,60]
[334224299,1722844341658,-500.0,0.00044657,60]
[334224300,1722844341701,-2390.28,0.00044657,60]
[334224301,1722844341748,-500.0,0.00044657,60]
[334224302,1722844341794,-500.0,0.00044657,60]
[334224303,1722844341839,-1761.5,0.00044657,60]
[334224304,1722844341886,-500.0,0.00044657,60]
[334224305,1722844341933,-1163.33,0.00044657,60]
[334224306,1722844341979,-500.0,0.00044657,60]
[334224307,1722844342027,-500.0,0.00044657,60]
[334224308,1722844342073,-500.0,0.00044657,60]
[334224309,1722844342119,-500.0,0.00044657,60]
[334224310,1722844342165,-1314.52,0.00044657,60]
[334224311,1722844342217,-761.02,0.00044657,60]
[334224312,1722844342270,-1207.95,0.00044657,60]
[334224313,1722844342317,-500.0,0.00044657,60]
[334224314,1722844342363,-500.0,0.00044657,60]
[334224315,1722844342411,-500.0,0.00044657,60]
[334224316,1722844342459,-500.0,0.00044657,60]
[334224317,1722844342504,-500.0,0.00044657,60]
[334224318,1722844342549,-2565.81,0.00044657,60]
[334224319,1722844342593,-500.0,0.00044657,60]
[334224320,1722844342636,-749.53,0.00044657,60]
[334224321,1722844342680,-979.33,0.00044657,60]
[334224322,1722844342723,-500.0,0.00044657,60]
[334224323,1722844342766,-961.95,0.00044657,60]
[334224324,1722844342945,-500.0,0.00044657,60]
[334224325,1722844342994,-611.05,0.00044657,60]
[334224326,1722844343040,-500.0,0.00044657,60]
[334224327,1722844343086,-500.0,0.00044657,60]
[334224328,1722844343134,-500.0,0.00044657,60]
[334224329,1722844343181,-545.02,0.00044657,60]
[334224330,1722844343229,-1016.91,0.00044657,60]
[334224331,1722844343276,-500.0,0.00044657,60]
[334224332,1722844343322,-500.0,0.00044657,60]
[334224333,1722844343367,-883.87,0.00044657,60]
[334224334,1722844343414,-2022.73,0.00044657,60]
[334224335,1722844343463,-500.0,0.00044657,60]
[334224336,1722844343509,-547.52,0.00044657,60]
[334224337,1722844343554,-1160.5,0.00044657,60]
[334224338,1722844343599,-1346.29,0.00044657,60]
[334224339,1722844343643,-4479.71,0.00044657,60]
[334224340,1722844343687,-501.59621163,0.00044657,60]
[334224341,1722844343734,-2040.04,0.00044657,60]
[334224342,1722844343782,-1279.5,0.00044657,60]
[334224343,1722844343829,-1979.66,0.00044657,60]
[334224344,1722844343876,-656.96,0.00044657,60]
[334224345,1722844343922,-500.0,0.00044657,60]
[334224346,1722844343969,-1797.59,0.00044657,60]
[334224347,1722844344014,-1718.42,0.00044657,60]
[334224348,1722844344061,-500.0,0.00044657,60]
[334224349,1722844344106,-500.0,0.00044657,60]
[334224350,1722844344153,-817.92,0.00044657,60]
[334224351,1722844344201,-500.0,0.00044657,60]
[334224352,1722844344251,-4393.43,0.00044657,60]
[334224353,1722844344297,-650.93,0.00044657,60]
[334224354,1722844344341,-500.0,0.00044657,60]
[334224355,1722844344384,-500.0,0.00044657,60]
[334224356,1722844344431,-795.98,0.00044657,60]
[334224357,1722844344477,-500.0,0.00044657,60]
[334224358,1722844344522,-2535.59,0.00044657,60]
[334224359,1722844344567,-500.0,0.00044657,60]
[334224360,1722844344612,-500.0,0.00044657,60]
[334224361,1722844344655,-1108.74,0.00044657,60]
[334224362,1722844344700,-554.48,0.00044657,60]
[334224363,1722844344744,-500.0,0.00044657,60]
[334224364,1722844344789,-748.43,0.00044657,60]
[334224365,1722844344835,-676.01,0.00044657,60]
[334224366,1722844344879,-2269.32,0.00044657,60]
[334224367,1722844344925,-541.67,0.00044657,60]
[334224368,1722844344972,-1092.36,0.00044657,60]
[334224369,1722844345026,-500.0,0.00044657,60]
[334224370,1722844345073,-2605.32,0.00044657,60]
[334224371,1722844345119,-881.72,0.00044657,60]
[334224372,1722844345167,-500.0,0.00044657,60]
[334224373,1722844345219,-571.71,0.00044657,60]
[334224374,1722844345268,-502.10778889,0.00044657,60]
[334224375,1722844345313,-500.0,0.00044657,60]
[334224376,1722844345359,-517.09,0.00044657,60]
[334224377,1722844345402,-1077.24,0.00044657,60]
[334224378,1722844345447,-587.38,0.00044657,60]
[334224379,1722844345493,-2690.83,0.00044657,60]
[334224380,1722844345537,-556.25220025,0.00044657,60]
[334224381,1722844345579,-500.0,0.00044657,60]
[334224382,1722844345622,-501.59835874,0.00044657,60]
[334224383,1722844345665,-3048.1,0.00044657,60]
[334224384,1722844345709,-1735.96,0.00044657,60]
[334224385,1722844345762,-500.0,0.00044657,60]
[334224386,1722844345805,-500.0,0.00044657,60]
[334224387,1722844345851,-500.0,0.00044657,60]
[334224388,1722844345894,-1039.78,0.00044657,60]
[334224389,1722844345938,-1250.88,0.00044657,60]
[334224390,1722844345981,-1011.05,0.00044657,60]
[334224391,1722844346025,-569.97175828,0.00044657,60]
[334224392,1722844346068,-500.0,0.00044657,60]
[334224393,1722844346112,-500.0,0.00044657,60]
[334224394,1722844346156,-1749.45,0.00044657,60]
[334224395,1722844346201,-500.0,0.00044657,60]
[334224396,1722844346249,-1204.61,0.00044657,60]
[334224397,1722844346292,-501.49156015,0.00044657,60]
[334224398,1722844346337,-500.0,0.00044657,60]
[334224399,1722844346380,-500.0,0.00044657,60]
[334224400,1722844346424,-500.0,0.00044657,60]
[334224401,1722844346470,-623.6,0.00044657,60]
[334224402,1722844346513,-500.0,0.00044657,60]
[334224403,1722844346556,-500.0,0.00044657,60]
[334224404,1722844346598,-500.0,0.00044657,60]
[334224405,1722844346643,-3446.36,0.00044657,60]
[334224406,1722844346686,-1415.66,0.00044657,60]
[334224407,1722844346730,-214.29912618,0.00044657,60]
[334224408,1722844346774,-1207.31,0.00044657,60]
[334224409,1722844346817,-500.0,0.00044657,60]
[334224410,1722844346859,-500.0,0.00044657,60]
[334224411,1722844346904,-500.0,0.00044657,60]
[334224412,1722844346949,-500.0,0.00044657,60]
[334224413,1722844347001,-3556.54,0.00044657,60]
[334224414,1722844347363,-788.5,0.00044657,60]
[334224415,1722844347411,-500.0,0.00044657,60]
[334224416,1722844347460,-500.0,0.00044657,60]
[334224417,1722844347517,-500.0,0.00044657,60]
[334224418,1722844347564,-500.0,0.00044657,60]
[334224419,1722844347610,-500.0,0.00044657,60]
[334224420,1722844347655,-738.52,0.00044657,60]
[334224421,1722844347699,-781.04,0.00044657,60]
[334224422,1722844347748,-2197.19,0.00044657,60]
[334224423,1722844347792,-500.0,0.00044657,60]
[334224424,1722844347838,-500.0,0.00044657,60]
[334224425,1722844347883,-500.0,0.00044657,60]
[334224426,1722844347928,-500.0,0.00044657,60]
[334224427,1722844347974,-500.0,0.00044657,60]
[334224428,1722844348020,-500.0,0.00044657,60]